bitfinex-derivatives/quotes_ETHF0:USTF0_20241102
["timestamp","ask_amount","ask_price","bid_price","bid_amount"]
[1730535735364,1.14908,2505.5,2505.3,0.27949]
[1730535736960,0.8696,2505.5,2505.1,3.2078]
[1730535737161,0.8696,2505.5,2505.4,0.27949]
[1730535737362,1.14908,2505.5,2505.3,0.2795]
[1730535739063,0.8696,2505.5,2505.2,0.42]
[1730535739263,0.8696,2505.5,2505.4,0.27949]
[1730535739975,1.14908,2505.5,2505.4,0.27949]
[1730535740269,1.14908,2505.5,2505.3,0.27949]
[1730535740669,0.8696,2505.5,2505.4,0.27949]
[1730535740867,0.4386,2505.5,2505.4,0.27949]
[1730535741667,3.39791531,2505.6,2505.5,0.27948]
[1730535741668,3.11844531,2505.6,2505.5,0.27948]
[1730535741870,3.11844531,2505.6,2505.2,3.6278]
[1730535741871,3.99404531,2505.8,2505.7,0.27946]
[1730535742071,3.99404531,2505.8,2505.3,0.4506]
[1730535742275,3.99404531,2505.8,2505.7,0.27946]
[1730535742875,4.27349531,2505.8,2505.6,0.27946]
[1730535744574,3.99404531,2505.8,2505.3,0.4506]
[1730535744783,3.39791531,2505.6,2505.5,0.27948]
[1730535745081,3.11844531,2505.6,2505.5,0.27948]
[1730535746890,0.27946,2505.7,2505.5,0.27948]
[1730535747075,0.27946,2505.7,2505.6,0.27947]
[1730535748180,0.8756,2505.8,2505.3,3.6584]
[1730535748376,0.8756,2505.8,2505.7,0.27946]
[1730535748779,1.15504,2505.8,2505.7,0.27946]
[1730535749081,0.2794,2506.3,2505.8,0.27944]
[1730535749385,3.11844531,2506.9,2506.1,0.69854]
[1730535749587,3.11844531,2506.9,2506.5,3.2078]
[1730535749588,0.432,2506.7,2506.5,3.2078]
[1730535749889,0.27944,2505.9,2505.7,0.27945]
[1730535750188,0.27946,2505.7,2505.6,0.4408]
[1730535750489,3.39789531,2505.8,2505.6,0.72026]
[1730535750785,3.11844531,2505.8,2505.6,0.4408]
[1730535750986,3.39789531,2505.8,2505.6,0.4408]
[1730535751181,0.27946,2505.7,2505.6,0.4408]
[1730535751384,3.11844531,2505.8,2505.5,3.2078]
[1730535751385,0.27947,2505.6,2505.5,3.2078]
[1730535752486,0.27947,2505.6,2505.4,0.73758]
[1730535752985,0.4228,2505.5,2505.4,0.73758]
[1730535753391,0.70228,2505.5,2505.4,0.73758]
[1730535753885,0.4228,2505.5,2505.4,0.73758]
[1730535754492,0.4228,2505.5,2505.4,0.27948]
[1730535754690,0.70228,2505.5,2505.4,0.27948]
[1730535755186,0.4228,2505.5,2505.4,0.27948]
[1730535758295,0.27946,2505.7,2505.1,0.8704]
[1730535758594,6.32624531,2505.8,2505.7,0.27946]
[1730535758595,3.48725,2505.8,2505.7,0.27946]
[1730535758996,3.48725,2505.8,2505.6,0.27946]
[1730535759589,0.4595,2505.9,2505.7,0.27946]
[1730535759590,0.73894,2505.9,2505.7,0.27946]
[1730535759795,0.73894,2505.9,2505.8,0.4419]
[1730535760493,0.4595,2505.9,2505.8,0.72134]
[1730535760700,0.73893,2505.9,2505.8,0.4419]
[1730535762596,0.73893,2505.9,2505.8,0.72134]
[1730535762791,0.4595,2505.9,2505.8,0.72134]
[1730535762999,0.27941,2506.1,2505.9,0.27943]
[1730535763191,0.27942,2506.0,2505.9,0.4405]
[1730535763392,3.6352,2506.2,2505.9,0.4405]
[1730535763599,0.27942,2506.0,2505.9,0.4405]
[1730535763800,0.27942,2506.0,2505.9,0.71993]
[1730535766405,0.27942,2506.1,2505.9,0.71993]
[1730535768308,0.4274,2506.2,2505.9,0.71993]
[1730535768607,0.27942,2506.0,2505.9,0.71993]
[1730535769301,0.27942,2506.0,2505.9,0.4405]
[1730535769502,0.4274,2506.2,2505.8,0.4419]
[1730535769699,0.27943,2505.9,2505.8,0.4419]
[1730535770195,0.27943,2505.9,2505.7,0.70435]
[1730535770395,0.73364,2505.8,2505.7,0.70435]
[1730535771500,0.73364,2505.8,2505.7,0.4249]
[1730535771702,0.73364,2505.8,2505.7,0.27946]
[1730535771703,0.73365,2505.8,2505.7,0.27946]
[1730535772913,0.27946,2505.7,2505.6,0.861]
[1730535773103,0.27947,2505.6,2505.5,0.4359]
[1730535776410,0.27947,2505.6,2505.5,0.71538]
[1730535779203,3.662,2505.8,2505.5,0.71538]
[1730535779407,0.27946,2505.7,2505.6,0.71076]
[1730535780409,3.94145,2505.8,2505.7,0.27946]
[1730535780610,3.48725,2505.8,2505.7,0.27946]
[1730535780813,0.4268,2506.1,2505.7,0.4203]
[1730535780814,0.27944,2505.9,2505.7,0.4203]
[1730535781116,0.27944,2505.9,2505.8,0.27944]
[1730535782211,0.71813,2506.0,2505.9,0.27943]
[1730535782507,0.27944,2505.9,2505.8,0.27944]
[1730535782708,0.27944,2505.8,2505.7,0.4203]
[1730535783109,0.4387,2506.0,2505.7,0.4203]
[1730535783415,0.4387,2506.0,2505.7,0.69975]
[1730535783620,0.27944,2505.8,2505.7,0.4203]
[1730535783823,0.27946,2505.7,2505.6,0.4313]
[1730535784211,0.27947,2505.6,2505.5,0.71537]
[1730535784407,0.27947,2505.6,2505.5,1.30293307]
[1730535784605,0.27947,2505.6,2505.5,0.4359]
[1730535785205,0.27949,2505.4,2505.3,0.69809]
[1730535785418,0.27949,2505.4,2505.3,1.28571215]
[1730535785717,0.448,2505.6,2505.4,0.27949]
[1730535785718,0.27948,2505.5,2505.4,0.27949]
[1730535787824,0.27948,2505.5,2505.3,0.69809]
[1730535788413,0.27949,2505.4,2505.3,0.4186]
[1730535788616,0.27949,2505.4,2505.3,0.6981]
[1730535792115,0.27948,2505.5,2505.4,0.27949]
[1730535793019,0.27948,2505.5,2505.3,0.4186]
[1730535793421,0.27948,2505.5,2505.4,0.27949]
[1730535793918,0.27948,2505.5,2505.3,0.4186]
[1730535793919,0.27949,2505.4,2505.3,0.6981]
[1730535795918,0.27949,2505.4,2505.3,0.4186]
[1730535797418,0.27949,2505.4,2505.3,0.6981]
[1730535801730,0.27949,2505.4,2505.3,0.4186]
[1730535802229,0.27949,2505.4,2505.3,0.6981]
[1730535803930,0.27949,2505.5,2505.4,0.27949]
[1730535816245,0.27949,2505.5,2505.4,0.86736629]
[1730535817445,0.27949,2505.5,2505.4,0.27949]
[1730535817645,0.27949,2505.5,2505.4,0.86745832]
[1730535821050,0.27949,2505.5,2505.4,0.27949]
[1730535821245,0.27949,2505.5,2505.4,0.86753003]
[1730535821751,0.27949,2505.5,2505.4,0.58804003]
[1730535822256,0.27949,2505.5,2505.4,0.86753003]
[1730535822456,0.27949,2505.5,2505.4,0.58804003]
[1730535823148,0.27949,2505.5,2505.4,0.27949]
[1730535824749,0.27949,2505.4,2505.3,0.69809]
[1730535824941,0.27949,2505.4,2505.3,1.28615451]
[1730535825147,0.27949,2505.4,2505.3,0.69809]
[1730535825347,0.27949,2505.4,2505.3,1.2861508]
[1730535826664,0.27948,2505.5,2505.4,0.27948]
[1730535826853,0.27948,2505.5,2505.4,0.8675408]
[1730535827054,4.09275267,2505.6,2505.3,0.69809]
[1730535827253,0.27949,2505.4,2505.3,0.69809]
[1730535827454,0.27949,2505.4,2505.3,1.41101376]
[1730535830359,0.27949,2505.4,2505.3,2.35268946]
[1730535832255,0.27949,2505.4,2505.3,0.69809]
[1730535832455,0.27949,2505.4,2505.3,2.35325019]
[1730535833163,0.27949,2505.4,2505.3,2.35326019]
[1730535834660,0.27949,2505.4,2505.3,2.07376019]
[1730535834855,0.27949,2505.4,2505.3,2.35326019]
[1730535836359,0.27949,2505.4,2505.3,2.35326736]
[1730535836764,0.27949,2505.4,2505.3,2.07376736]
[1730535836965,0.27949,2505.4,2505.3,2.35326736]
[1730535838573,0.27949,2505.4,2505.3,2.35328331]
[1730535839663,0.27949,2505.4,2505.3,2.35328317]
[1730535840462,3.64475267,2505.5,2505.3,2.07378317]
[1730535840669,3.92423267,2505.5,2505.4,0.99293101]
[1730535841065,3.92423267,2505.5,2505.4,0.71344101]
[1730535841668,3.92423267,2505.5,2505.4,0.99293101]
[1730535842063,0.27949,2505.4,2505.3,0.69809]
[1730535842271,0.27949,2505.4,2505.3,0.8229417]
[1730535842472,0.27949,2505.4,2505.3,2.07380154]
[1730535842667,0.27949,2505.4,2505.3,2.35330154]
[1730535844271,0.27949,2505.4,2505.3,2.35331858]
[1730535845478,0.27949,2505.4,2505.3,2.07381858]
[1730535845869,0.27949,2505.4,2505.3,1.41156636]
[1730535846265,0.27949,2505.4,2505.3,2.35332575]
[1730535846873,0.27949,2505.4,2505.3,0.6981]
[1730535847074,0.27949,2505.4,2505.3,2.35333535]
[1730535848680,0.27949,2505.4,2505.3,1.13206332]
[1730535849073,0.27949,2505.4,2505.3,2.35334293]
[1730535849381,0.27949,2505.4,2505.3,2.35333564]
[1730535849580,0.27949,2505.4,2505.3,0.6981]
[1730535849780,0.27949,2505.4,2505.3,2.35334062]
[1730535850277,0.27949,2505.4,2505.3,1.13206513]
[1730535850482,0.27949,2505.4,2505.3,2.35333337]
[1730535853279,0.27949,2505.4,2505.3,0.82295352]
[1730535853484,0.27949,2505.4,2505.3,2.35330161]
[1730535854575,0.27949,2505.4,2505.3,2.35329379]
[1730535856881,0.27949,2505.4,2505.3,2.3533009]
[1730535857385,0.27949,2505.4,2505.3,2.07380262]
[1730535857585,0.27949,2505.4,2505.3,0.71344974]
[1730535858183,0.27949,2505.4,2505.3,0.99294974]
[1730535860490,0.27949,2505.4,2505.3,0.99295039]
[1730535862391,0.27949,2505.4,2505.3,1.9347366]
[1730535862591,0.27949,2505.4,2505.3,0.99295039]
[1730535862794,0.27949,2505.4,2505.3,1.93473334]
[1730535863188,0.27949,2505.4,2505.3,0.99295039]
[1730535864089,0.27949,2505.4,2505.3,0.40435419]
[1730535864393,0.27949,2505.4,2505.3,0.99298769]
[1730535864588,0.27949,2505.4,2505.3,0.71348769]
[1730535864788,0.27949,2505.4,2505.3,0.99298769]
[1730535865479,0.27949,2505.4,2505.3,1.93484447]
[1730535865680,0.27949,2505.4,2505.3,0.99298769]
[1730535867085,0.27949,2505.4,2505.3,1.93486817]
[1730535867593,3.93473139,2505.4,2505.3,1.93486817]
[1730535867797,3.93473139,2505.4,2505.3,1.81012049]
[1730535867990,3.93473139,2505.4,2505.3,1.93497454]
[1730535868192,3.93473139,2505.4,2505.3,1.81012617]
[1730535868493,3.93473139,2505.4,2505.3,1.93498094]
[1730535871483,3.93473139,2505.4,2505.3,1.81012617]
[1730535871687,3.93473139,2505.4,2505.3,1.9349798]
[1730535873094,3.93473139,2505.4,2505.3,1.6554798]
[1730535873293,0.27949,2505.4,2505.3,1.65550506]
[1730535873497,3.93473139,2505.4,2505.3,1.93500506]
[1730535875187,3.93473139,2505.4,2505.3,1.93501621]
[1730535875694,3.93473139,2505.4,2505.3,1.65551621]
[1730535875902,3.93473139,2505.4,2505.3,1.93501621]
[1730535878804,3.93473139,2505.4,2505.3,1.81014878]
[1730535879009,3.93473139,2505.4,2505.3,1.93500413]
[1730535879191,3.93473139,2505.4,2505.3,1.65550413]
[1730535879396,0.27949,2505.4,2505.3,1.65550413]
[1730535879597,3.93473139,2505.4,2505.3,1.93500413]
[1730535881299,0.27949,2505.4,2505.3,1.93500413]
[1730535882297,3.93473139,2505.4,2505.3,0.2795]
[1730535882499,3.93473139,2505.4,2505.3,1.93503764]
[1730535885303,3.93473139,2505.4,2505.3,0.40435363]
[1730535885509,3.93473139,2505.4,2505.3,1.93509065]
[1730535888009,3.93473139,2505.4,2505.3,1.93510823]
[1730535888399,3.93473139,2505.4,2505.3,0.86825534]
[1730535888605,3.93473139,2505.4,2505.3,1.93511789]
[1730535890006,3.93473139,2505.4,2505.3,1.93511842]
[1730535890407,3.93473139,2505.4,2505.3,0.2795]
[1730535890607,3.93473139,2505.4,2505.3,1.93512594]
[1730535891006,3.93473139,2505.4,2505.3,1.65562594]
[1730535891207,3.93473139,2505.4,2505.3,1.93512594]
[1730535892007,3.93473139,2505.4,2505.3,1.65562594]
[1730535892207,3.93473139,2505.4,2504.6,0.62417602]
[1730535892208,5.42952638,2505.4,2504.6,0.62417602]
[1730535892408,0.27956,2504.8,2504.7,1.65553313]
[1730535892707,0.27956,2504.8,2504.2,2.48663597]
[1730535892708,0.69894,2504.7,2504.1,0.27963]
[1730535892912,0.27962,2504.3,2504.2,2.10640767]
[1730535893301,4.18277226,2504.6,2504.2,1.3190285]
[1730535893302,0.27961,2504.4,2504.2,1.3190285]
[1730535893505,3.65356806,2504.6,2504.2,0.73022]
[1730535893817,3.65356806,2504.6,2504.2,0.4506]
[1730535894011,1.71792638,2504.5,2504.3,0.27961]
[1730535894211,1.43832638,2504.5,2504.3,0.27961]
[1730535894416,0.2796,2504.4,2504.3,0.27961]
[1730535899717,1.71792638,2504.5,2504.3,0.27961]
[1730535900020,1.71792638,2504.5,2504.4,0.4253]
[1730535900315,1.43832638,2504.5,2504.4,1.1628]
[1730535900618,1.3348,2504.7,2504.4,4.876]
[1730535900619,0.72337,2504.7,2504.4,4.876]
[1730535900814,0.72337,2504.7,2504.5,0.27958]
[1730535901425,2.16169638,2504.7,2504.5,0.27958]
[1730535902223,0.4438,2504.7,2504.6,0.27958]
[1730535902422,1.71788638,2504.8,2504.4,0.8832]
[1730535902627,1.71788638,2504.8,2504.6,0.27957]
[1730535902927,1.71788638,2504.8,2504.7,0.4193]
[1730535903124,1.71788638,2504.8,2504.7,0.8644]
[1730535911723,1.71788638,2504.8,2504.7,0.4193]
[1730535911924,1.71788638,2504.8,2504.4,0.4253]
[1730535911925,0.27958,2504.6,2504.5,0.73619]
[1730535912126,1.43832638,2504.6,2504.0,3.2078]
[1730535912328,0.4488,2504.9,2504.3,0.27961]
[1730535912329,0.27961,2504.4,2504.3,0.27961]
[1730535912535,0.27961,2504.4,2504.2,0.27962]
[1730535912936,0.27961,2504.4,2504.1,1.3104]
[1730535913126,0.27961,2504.4,2504.2,0.27962]
[1730535913127,1.43832638,2504.3,2504.2,0.27962]
[1730535913530,2.16491638,2504.5,2504.4,0.2796]
[1730535913938,1.88532638,2504.5,2504.4,0.2796]
[1730535914239,0.447,2504.5,2504.4,0.2796]
[1730535915733,0.72659,2504.5,2504.4,0.2796]
[1730535917628,0.447,2504.5,2504.4,0.2796]
[1730535918230,1.43832638,2504.6,2504.5,0.27959]
[1730535918433,0.27958,2504.7,2504.2,1.43832638]
[1730535918633,0.27958,2504.7,2504.6,0.27958]
[1730535919837,1.43832638,2504.8,2504.2,5.34517638]
[1730535920135,0.27958,2504.6,2504.5,0.27958]
[1730535920438,1.71790638,2504.6,2504.5,0.27958]
[1730535923235,1.43832638,2504.6,2504.1,1.3104]
[1730535923734,1.71790638,2504.6,2504.5,0.27959]
[1730535923934,1.43832638,2504.6,2504.1,1.3104]
[1730535924136,0.27959,2504.5,2504.4,0.2796]
[1730535925028,1.43832638,2504.5,2504.1,2.1414]
[1730535925233,0.698,2504.4,2504.3,0.27961]
[1730535927232,0.698,2504.4,2504.2,0.27962]
[1730535927233,0.27961,2504.3,2504.2,0.27962]
[1730535928631,0.27962,2504.2,2504.1,1.59003]
[1730535928940,0.27962,2504.2,2504.1,1.3104]
[1730535929136,1.43832638,2504.3,2503.6,2.50569085]
[1730535929137,1.89992638,2504.3,2503.6,2.50569085]
[1730535929341,0.27966,2503.9,2503.8,1.62616]
[1730535931646,1.43832638,2503.9,2503.7,0.27968]
[1730535931945,1.43832638,2503.9,2503.5,1.61659]
[1730535931946,0.27967,2503.8,2503.5,1.61659]
[1730535932136,1.43832638,2503.7,2503.5,1.61659]
[1730535932336,0.27969,2503.6,2503.5,1.3369]
[1730535932747,1.71800638,2503.7,2503.5,1.61659]
[1730535932941,1.71800638,2503.7,2503.6,0.27969]
[1730535933841,1.86852638,2503.8,2503.5,1.3369]
[1730535934042,1.71800638,2503.8,2503.6,0.27969]
[1730535934449,0.27968,2503.7,2503.6,0.27969]
[1730535936943,1.71799638,2503.8,2503.7,0.27968]
[1730535937150,1.71799638,2503.8,2503.6,0.27968]
[1730535937851,0.27968,2503.7,2503.6,0.27968]
[1730535938554,1.43832638,2503.8,2503.6,0.27969]
[1730535938555,1.71800638,2503.8,2503.6,0.27969]
[1730535939144,1.43832638,2503.8,2503.6,0.27969]
[1730535939441,0.27968,2503.7,2503.6,0.27969]
[1730535940655,0.27969,2503.7,2503.5,1.61659]
[1730535940952,1.43832638,2503.6,2503.5,1.6166]
[1730535942854,0.27968,2503.7,2503.6,0.27969]
[1730535945257,1.71799638,2503.8,2503.7,0.27968]
[1730535945857,1.71799638,2503.8,2503.5,1.3369]
[1730535945858,1.43832638,2503.8,2503.5,1.3369]
[1730535946058,0.27969,2503.7,2503.6,0.27969]
[1730535949365,0.27969,2503.6,2503.5,1.61659]
[1730535951160,0.4381,2503.7,2503.6,0.27969]
[1730535951362,0.71778,2503.7,2503.6,0.27969]
[1730535952957,0.71779,2503.7,2503.6,0.27969]
[1730535953162,0.4381,2503.7,2503.5,1.3369]
[1730535953360,0.27969,2503.6,2503.5,1.6166]
[1730535955866,0.27969,2503.6,2503.5,1.3369]
[1730535956057,1.87642638,2503.7,2503.2,3.2078]
[1730535956262,0.27971,2503.5,2503.4,0.27971]
[1730535956464,0.27971,2503.5,2503.2,4.5356]
[1730535956666,0.73521,2503.4,2503.3,0.27972]
[1730535957062,0.27972,2503.3,2503.2,4.5356]
[1730535957263,1.71804638,2503.3,2503.2,1.3278]
[1730535957971,1.71804638,2503.3,2503.2,1.60753]
[1730535958269,1.71804638,2503.3,2503.2,1.3278]
[1730535958657,1.71804638,2503.3,2503.2,0.8762]
[1730535958863,0.27975,2503.1,2503.0,0.73785]
[1730535959166,1.71807638,2503.1,2503.0,0.73785]
[1730535959669,1.43832638,2503.1,2503.0,0.73785]
[1730535960169,1.87862638,2503.1,2503.0,0.73785]
[1730535962072,0.27976,2503.0,2502.9,0.885]
[1730535962368,1.71808638,2503.0,2502.9,0.885]
[1730535962865,1.43832638,2503.0,2502.9,1.16477]
[1730535963771,1.71808638,2503.0,2502.9,1.16477]
[1730535965563,1.71808638,2503.0,2502.9,0.885]
[1730535965964,1.71808638,2503.0,2502.9,1.16477]
[1730535966167,1.43832638,2503.0,2502.9,1.16477]
[1730535966366,0.72005,2503.1,2503.0,0.27976]
[1730535967867,0.4403,2503.1,2503.0,0.27976]
[1730535968470,3.2078,2503.4,2503.3,0.27972]
[1730535969474,2.15703638,2503.5,2503.1,0.4426]
[1730535969475,1.87732638,2503.5,2503.1,0.4426]
[1730535969769,0.27972,2503.4,2503.3,0.27972]
[1730535970177,1.71804638,2503.4,2503.3,0.27972]
[1730535970670,0.27973,2503.3,2503.1,0.4426]
[1730535970877,1.43832638,2503.2,2503.1,0.72235]
[1730535971278,1.89212638,2503.2,2503.1,0.72235]
[1730535975376,0.4538,2503.2,2503.1,0.72235]
[1730535979073,0.27975,2503.1,2502.9,0.885]
[1730535979281,1.43832638,2503.0,2502.9,1.16477]
[1730535979581,0.4538,2503.2,2502.9,0.885]
[1730535979782,0.4538,2503.2,2503.1,0.27975]
[1730535979973,1.43832638,2503.3,2502.9,0.885]
[1730535980169,0.4448,2503.4,2503.3,0.27972]
[1730535980378,4.64612638,2503.5,2503.1,3.2078]
[1730535980578,4.64612638,2503.5,2503.4,0.27971]
[1730535980880,4.92582638,2503.5,2503.4,0.27971]
[1730535981279,0.27972,2503.4,2503.1,3.2078]
[1730535981480,1.43832638,2503.3,2503.2,0.86726508]
[1730535981682,1.87122638,2503.3,2503.2,0.86727604]
[1730535981878,2.15094638,2503.3,2503.2,0.86727604]
[1730535982077,2.15094638,2503.3,2503.2,0.86727597]
[1730535982385,0.27973,2503.2,2503.1,3.2078]
[1730535982682,1.71805638,2503.2,2503.1,3.2078]
[1730535982986,2.17065638,2503.2,2503.1,3.2078]
[1730535984078,1.71805638,2503.2,2503.1,3.48755]
[1730535984388,1.87122638,2503.3,2503.2,0.27973]
[1730535984986,3.2078,2503.5,2503.4,0.27971]
[1730535985388,3.2078,2503.5,2503.4,4.27411]
[1730535986276,3.2078,2503.5,2503.4,0.27971]
[1730535986679,4.64612638,2503.5,2503.4,0.27971]
[1730535987087,1.43832638,2503.5,2503.4,0.27971]
[1730535987381,1.43832638,2503.5,2503.4,4.27411]
[1730535987692,1.43832638,2503.5,2503.4,0.27971]
[1730535988688,1.43832638,2503.5,2503.4,0.86733137]
[1730535988990,1.43832638,2503.5,2503.4,0.27971]
[1730535989985,1.43832638,2503.5,2503.4,4.86173996]
[1730535990586,1.43832638,2503.5,2503.4,0.86733996]
[1730535990790,1.43832638,2503.5,2503.4,0.27971]
[1730535993990,1.43832638,2503.5,2503.4,4.27411]
[1730535994189,1.43832638,2503.5,2503.4,4.8617696]
[1730535994385,0.4549,2503.6,2503.5,0.2797]
[1730535995581,4.0932,2503.9,2503.3,0.8882]
[1730535995582,3.2078,2503.9,2503.3,0.8882]
[1730535995783,3.2078,2503.9,2503.7,0.27968]
[1730535995784,1.43832638,2503.8,2503.7,0.27968]
[1730535996693,1.71799638,2503.8,2503.7,0.27968]
[1730535996880,1.43832638,2503.8,2503.7,0.27968]
[1730536001794,1.43832638,2503.8,2503.5,0.73639]
[1730536001997,1.43832638,2503.6,2503.5,0.73639]
[1730536002391,1.86042638,2503.6,2503.5,0.73639]
[1730536004101,2.14011638,2503.6,2503.5,0.73639]
[1730536004297,2.14011638,2503.6,2503.5,0.27969]
[1730536004796,0.2797,2503.5,2503.4,0.2797]
[1730536005099,0.2797,2503.5,2503.4,0.86713568]
[1730536005491,1.86042638,2503.6,2503.4,0.86713568]
[1730536005698,2.14012638,2503.6,2503.4,0.2797]
[1730536006399,2.14012638,2503.6,2503.3,1.3125]
[1730536006400,2.14012638,2503.6,2503.5,0.2797]
[1730536010295,1.86042638,2503.6,2503.5,0.2797]
[1730536010801,0.4221,2503.6,2503.5,0.2797]
[1730536014607,0.4221,2503.6,2503.5,0.86746081]
[1730536014905,0.4221,2503.6,2503.5,0.2797]
[1730536015709,0.4221,2503.6,2503.5,0.86746246]
[1730536016006,0.4221,2503.6,2503.5,0.2797]
[1730536016706,0.4221,2503.6,2503.5,0.8674628]
[1730536017410,0.4221,2503.6,2503.5,0.9923978]
[1730536017594,0.4221,2503.6,2503.5,0.8674628]
[1730536017900,0.4221,2503.6,2503.5,0.2797]
[1730536018105,0.4221,2503.6,2503.5,0.86747325]
[1730536019006,0.4221,2503.6,2503.5,0.86749948]
[1730536019206,0.4221,2503.6,2503.3,0.4528]
[1730536019403,1.43832638,2503.4,2503.3,0.27972]
[1730536020805,1.43832638,2503.4,2503.0,4.0667]
[1730536021003,0.4475,2503.3,2503.2,0.27973]
[1730536021306,0.72722,2503.3,2503.2,0.86764437]
[1730536021499,0.72722,2503.3,2503.2,0.86768439]
[1730536021808,0.72722,2503.3,2503.2,0.58795439]
[1730536022303,0.72722,2503.3,2503.2,0.86768439]
[1730536022604,0.72722,2503.3,2503.2,0.58795439]
[1730536022796,0.4475,2503.3,2503.1,0.27975]
[1730536023004,1.71805638,2503.2,2503.1,0.27975]
[1730536023303,1.43832638,2503.2,2503.1,0.99268646]
[1730536023605,1.43832638,2503.2,2503.1,0.86772642]
[1730536023797,1.43832638,2503.2,2503.1,0.99268414]
[1730536024003,1.43832638,2503.2,2503.1,0.86772642]
[1730536025402,1.43832638,2503.2,2503.1,0.40470737]
[1730536025610,1.43832638,2503.2,2503.1,0.86785016]
[1730536026604,1.43832638,2503.2,2503.1,0.27975]
[1730536026804,1.43832638,2503.2,2503.1,0.86778186]
[1730536028604,1.43832638,2503.2,2503.1,0.86771027]
[1730536033416,1.71805638,2503.2,2503.1,0.86771027]
[1730536033611,1.43832638,2503.2,2503.1,0.58796027]
[1730536033813,1.43832638,2503.2,2502.8,0.4441]
[1730536033814,0.27977,2502.9,2502.8,0.4441]
[1730536034007,1.71809638,2502.9,2502.8,0.4441]
[1730536034317,1.43832638,2502.9,2502.8,0.72388]
[1730536034521,1.71809638,2502.9,2502.8,0.72388]
[1730536034716,2.17089638,2502.9,2502.8,0.72388]
[1730536036011,1.89112638,2502.9,2502.8,0.72388]
[1730536036216,2.17089638,2502.9,2502.8,0.4441]
[1730536036421,2.17089638,2502.9,2502.8,0.72388]
[1730536036714,2.17089638,2502.9,2502.8,0.4441]
[1730536037927,1.89112638,2502.9,2502.7,0.27979]
[1730536038108,0.27978,2502.8,2502.7,0.27979]
[1730536038312,0.27978,2502.8,2502.6,0.8404]
[1730536038508,1.89112638,2502.9,2502.4,0.4365]
[1730536038509,5.71412638,2502.7,2502.5,0.2798]
[1730536038719,1.43832638,2502.6,2502.5,0.2798]
[1730536038917,1.86452638,2502.6,2502.5,0.2798]
[1730536039518,1.86452638,2502.6,2502.4,0.4365]
[1730536039715,2.14433638,2502.6,2502.5,0.27981]
[1730536039915,2.14433638,2502.6,2502.4,0.4365]
[1730536040223,2.14433638,2502.6,2502.4,0.71632]
[1730536041013,2.14433638,2502.6,2502.5,0.27981]
[1730536041213,2.14433638,2502.6,2502.4,3.92412]
[1730536041416,2.14433638,2502.6,2502.5,0.27981]
[1730536041920,2.14433638,2502.6,2502.4,3.92412]
[1730536044221,2.14433638,2502.6,2502.5,0.27981]
[1730536044726,2.14433638,2502.6,2502.4,3.92412]
[1730536044923,2.14433638,2502.6,2502.4,3.6443]
[1730536045126,2.14433638,2502.6,2502.5,0.27981]
[1730536047619,0.27981,2502.5,2502.4,3.92412]
[1730536047822,1.86452638,2502.6,2502.4,3.6443]
[1730536048024,0.27981,2502.5,2502.4,3.92412]
[1730536048721,2.14433638,2502.6,2502.4,3.92412]
[1730536049224,2.14433638,2502.6,2502.4,3.48762]
[1730536049225,5.86052638,2502.6,2502.4,3.48762]
[1730536049422,0.27981,2502.5,2502.4,3.48762]
[1730536049924,3.996,2502.5,2502.4,3.48762]
[1730536050317,4.27581,2502.5,2502.4,3.48762]
[1730536051021,0.27981,2502.5,2502.4,3.48762]
[1730536051227,4.27581,2502.5,2502.4,3.48762]
[1730536051822,3.996,2502.5,2502.4,3.48762]
[1730536052023,2.14433638,2502.6,2502.4,3.48762]
[1730536052223,0.27981,2502.5,2502.4,3.48762]
[1730536052621,3.996,2502.5,2502.4,3.48762]
[1730536052828,2.14433638,2502.6,2502.4,3.2078]
[1730536053027,1.86452638,2502.6,2502.4,3.2078]
[1730536053217,1.43832638,2502.6,2502.5,0.70311]
[1730536055625,1.43832638,2502.7,2502.6,0.2798]
[1730536055928,1.43832638,2502.7,2502.6,0.7241]
[1730536058929,1.43832638,2502.8,2502.6,4.4403]
[1730536059125,1.43832638,2503.0,2502.9,0.27977]
[1730536060030,1.71808638,2503.0,2502.9,0.27977]
[1730536060337,1.71806638,2503.2,2503.1,0.27974]
[1730536060529,2.15576638,2503.2,2503.1,0.27974]
[1730536060831,1.87602638,2503.2,2503.1,0.27974]
[1730536061731,0.27975,2503.1,2503.0,0.27975]
[1730536061928,1.71807638,2503.1,2503.0,0.27975]
[1730536062334,0.27976,2503.0,2502.9,0.27976]
[1730536062635,1.71808638,2503.0,2502.9,0.27976]
[1730536070139,1.71808638,2503.0,2502.7,0.4213]
[1730536070140,1.43832638,2503.0,2502.7,0.4213]
[1730536070442,0.71447,2502.9,2502.8,0.27977]
[1730536070845,0.4347,2502.9,2502.8,0.27977]
[1730536072950,1.43832638,2503.0,2502.7,0.4213]
[1730536073243,1.71807638,2503.1,2503.0,0.27976]
[1730536073446,1.43832638,2503.1,2503.0,0.27976]
[1730536073851,3.48753,2503.3,2502.8,3.2078]
[1730536073852,4.64612638,2503.3,2502.8,3.2078]
[1730536074146,4.92584638,2503.3,2503.2,0.27973]
[1730536074550,4.64612638,2503.3,2502.9,0.9181]
[1730536074843,0.27974,2503.2,2503.1,0.27974]
[1730536075044,1.71806638,2503.2,2503.1,0.27974]
[1730536075350,1.43832638,2503.2,2503.1,0.27974]
[1730536075546,1.71805638,2503.2,2503.1,0.27974]
[1730536079058,1.43832638,2503.2,2502.9,0.9181]
[1730536079262,0.72496,2503.1,2503.0,0.27975]
[1730536080266,0.4452,2503.1,2503.0,0.27975]
[1730536080570,1.88352638,2503.1,2503.0,0.27975]
[1730536080770,2.16327638,2503.1,2503.0,0.27975]
[1730536082570,1.88352638,2503.1,2503.0,0.27975]
[1730536083563,2.16327638,2503.1,2503.0,0.27975]
[1730536084167,1.88352638,2503.1,2502.9,0.9181]
[1730536084469,0.27977,2503.0,2502.8,0.27977]
[1730536084777,1.43832638,2502.9,2502.8,0.27977]
[1730536085571,1.71809638,2502.9,2502.8,0.27977]